fUST/lending_fUST_20250101
["ID","MTS","AMOUNT","RATE_DAILY","PERIOD"]
[347345281,1735715439988,-500.0,0.00019178,2]
[347345283,1735715439998,-365.500001,0.00019178,2]
[347345285,1735715440009,-365.500001,0.00019178,2]
[347345287,1735715440018,-365.500001,0.00019178,2]
[347345289,1735715440028,-500.0,0.00019178,2]
[347345291,1735715440037,-500.87074003,0.00019178,2]
[347345293,1735715440047,-365.500001,0.00019178,2]
[347345295,1735715440056,-365.500001,0.00019178,2]
[347345297,1735715440066,-365.500001,0.00019178,2]
[347345299,1735715440076,-500.0,0.00019178,2]
[347345301,1735715440086,-365.500001,0.00019178,2]
[347345303,1735715440095,-365.500001,0.00019178,2]
[347345305,1735715440104,-365.500001,0.00019178,2]
[347345307,1735715440114,-365.500001,0.00019178,2]
[347345309,1735715440123,-500.0,0.00019178,2]
[347345311,1735715440132,-365.500001,0.00019178,2]
[347345313,1735715440142,-365.500001,0.00019178,2]
[347345315,1735715440152,-365.500001,0.00019178,2]
[347345317,1735715440161,-500.0,0.00019178,2]
[347345319,1735715440170,-365.500001,0.00019178,2]
[347345321,1735715440180,-365.500007,0.00019178,2]
[347345323,1735715440189,-500.0,0.00019178,2]
[347345325,1735715440198,-500.0,0.00019178,2]
[347345327,1735715440208,-500.0,0.00019178,2]
[347345329,1735715440217,-500.0,0.00019178,2]
[347345332,1735715440227,-495.67727586,0.00019178,2]
[347345334,1735715440236,-500.0,0.00019178,2]
[347345336,1735715440245,-798.1,0.00019178,2]
[347345338,1735715440254,-504.90204004,0.00019178,2]
[347345340,1735715440263,-503.79289684,0.00019178,2]
[347345342,1735715440273,-500.0,0.00019178,2]
[347345344,1735715440282,-671.74,0.00019178,2]
[347345346,1735715440291,-500.0,0.00019178,2]
[347345348,1735715440301,-500.0,0.00019178,2]
[347345349,1735715440310,-502.19595148,0.00019178,2]
[347345351,1735715440320,-502.95589363,0.00019178,2]
[347345353,1735715440329,-500.0,0.00019178,2]
[347345356,1735715440340,-500.0,0.00019178,2]
[347345358,1735715440351,-500.0,0.00019178,2]
[347345359,1735715440360,-500.0,0.00019178,2]
[347345362,1735715440370,-500.0,0.00019178,2]
[347345363,1735715440379,-500.0,0.00019178,2]
[347345365,1735715440388,-523.33,0.00019178,2]
[347345367,1735715440397,-500.0,0.00019178,2]
[347345369,1735715440406,-500.0,0.00019178,2]
[347345371,1735715440415,-500.0,0.00019178,2]
[347345373,1735715440425,-500.0,0.00019178,2]
[347345375,1735715440434,-500.0,0.00019178,2]
[347345377,1735715440443,-500.0,0.00019178,2]
[347345380,1735715440453,-717.53,0.00019178,2]
[347345381,1735715440462,-500.0,0.00019178,2]
[347345384,1735715440472,-500.0,0.00019178,2]
[347345385,1735715440482,-500.0,0.00019178,2]
[347345387,1735715440491,-500.0,0.00019178,2]
[347345389,1735715440500,-500.0,0.00019178,2]
[347345391,1735715440510,-500.0,0.00019178,2]
[347345393,1735715440519,-638.69371148,0.00019178,2]
[347345395,1735715440528,-500.0,0.00019178,2]
[347345397,1735715440537,-500.0,0.00019178,2]
[347345399,1735715440546,-500.0,0.00019178,2]
[347345401,1735715440555,-500.0,0.00019178,2]
[347345403,1735715440564,-1123.43,0.00019178,2]
[347345405,1735715440574,-151.0,0.00019178,2]
[347345407,1735715440582,-151.0,0.00019178,2]
[347345409,1735715440591,-151.0,0.00019178,2]
[347345411,1735715440600,-151.0,0.00019178,2]
[347345413,1735715440610,-500.0,0.00019178,2]
[347345415,1735715440619,-151.0,0.00019178,2]
[347345417,1735715440628,-151.0,0.00019178,2]
[347345419,1735715440637,-500.0,0.00019178,2]
[347345421,1735715440646,-151.0,0.00019178,2]
[347345423,1735715440655,-151.0,0.00019178,2]
[347345425,1735715440664,-500.0,0.00019178,2]
[347345427,1735715440673,-151.0,0.00019178,2]
[347345429,1735715440682,-151.0,0.00019178,2]
[347345431,1735715440693,-151.0,0.00019178,2]
[347345433,1735715440702,-151.0,0.00019178,2]
[347345435,1735715440712,-151.0,0.00019178,2]
[347345437,1735715440721,-151.0,0.00019178,2]
[347345439,1735715440730,-215.752644,0.00019178,2]
[347345441,1735715440739,-502.46715494,0.00019178,2]
[347345443,1735715440749,-631.93380606,0.00019178,2]
[347345445,1735715440758,-500.78745541,0.00019178,2]
[347345447,1735715440767,-500.0,0.00019178,2]
[347345449,1735715440776,-502.78166121,0.00019178,2]
[347345451,1735715440785,-500.0,0.00019178,2]
[347345453,1735715440794,-500.0,0.00019178,2]
[347345455,1735715440803,-501.66086818,0.00019178,2]
[347345457,1735715440812,-500.0,0.00019178,2]
[347345459,1735715440821,-501.21843315,0.00019178,2]
[347345461,1735715440830,-500.0,0.00019178,2]
[347345463,1735715440839,-332.42741766,0.00019178,2]
[347345465,1735715440848,-500.0,0.00019178,2]
[347345467,1735715440857,-500.0,0.00019178,2]
[347345469,1735715440866,-269.62753505,0.00019178,2]
[347345471,1735715440875,-500.0,0.00019178,2]
[347345474,1735715440884,-814.89,0.00019178,2]
[347345475,1735715440893,-500.0,0.00019178,2]
[347345478,1735715440902,-500.0,0.00019178,2]
[347345479,1735715440911,-508.39021735,0.00019178,2]
[347345482,1735715440920,-500.0,0.00019178,2]
[347345484,1735715440929,-500.0,0.00019178,2]
[347345485,1735715440939,-13980.12,0.00019178,2]
[347345487,1735715440949,-151.0,0.00019178,2]
[347345490,1735715440958,-151.0,0.00019178,2]
[347345492,1735715440978,-160.507006,0.00019178,2]
[347345494,1735715440987,-500.0,0.00019178,2]
[347345495,1735715440996,-1314.31229812,0.00019178,2]
[347345731,1735715445844,-584.56770188,0.00019178,2]
[347345732,1735715445853,-501.13039493,0.00019178,2]
[347345733,1735715445862,-500.0,0.00019178,2]
[347345734,1735715445872,-611.65993568,0.00019178,2]
[347345735,1735715445882,-501.37533478,0.00019178,2]
[347345736,1735715445891,-944.81,0.00019178,2]
[347345737,1735715445900,-500.0,0.00019178,2]
[347345738,1735715445910,-500.0,0.00019178,2]
[347345739,1735715445920,-500.0,0.00019178,2]
[347345740,1735715445929,-500.0,0.00019178,2]
[347345741,1735715445938,-151.0,0.00019178,2]
[347345742,1735715445948,-500.0,0.00019178,2]
[347345743,1735715445957,-151.0,0.00019178,2]
[347345744,1735715445971,-239.62208293,0.00019178,2]
[347345745,1735715445980,-500.0,0.00019178,2]
[347345746,1735715445989,-500.0,0.00019178,2]
[347345747,1735715445998,-145.3836606,0.00019178,2]
[347345748,1735715446031,-474.94247516,0.00019178,2]
[347345749,1735715446040,-667.52927727,0.00019178,2]
[347345908,1735716056927,266.757759,0.00013973,2]
[347345961,1735716632176,-3733.7926741,0.00018117,2]
[347345962,1735716632186,-192.961538,0.00018139,2]
[347345963,1735716632195,-535.607,0.0001822,2]
[347345964,1735716632204,-754.12603748,0.00018581,2]
[347345977,1735716638110,-1182.54113705,0.00018581,2]
[347345978,1735716638120,-503.00886295,0.00018911,2]
[347346020,1735716639970,-809.74296219,0.00018911,2]
[347346022,1735716639980,-394.0,0.00019013,2]
[347346024,1735716639990,-219.7,0.00019022,4]
[347346026,1735716640000,-220.74894968,0.00019077,2]
[347346028,1735716640009,-300.0,0.00019077,2]
[347346030,1735716640018,-11459.15092911,0.00019078,2]
[347346033,1735716640028,-229.482785,0.000191,2]
[347346035,1735716640038,-242.0171285,0.000191,2]
[347346037,1735716640047,-501.92214031,0.00019173,2]
[347346039,1735716640058,-32932.01503509,0.00019177,2]
[347346041,1735716640067,-451.1437427,0.00019177,2]
[347346043,1735716640076,-1632.80546392,0.00019178,2]
[347346045,1735716640085,-500.0,0.00019178,2]
[347346047,1735716640094,-151.188414,0.00019178,2]
[347346049,1735716640104,-151.0,0.00019178,2]
[347346051,1735716640113,-151.0,0.00019178,2]
[347346053,1735716640122,-898.48,0.00019178,2]
[347346055,1735716640131,-151.0,0.00019178,2]
[347346057,1735716640140,-151.0,0.00019178,2]
[347346059,1735716640149,-151.0,0.00019178,2]
[347346060,1735716640159,-151.0,0.00019178,2]
[347346062,1735716640168,-151.0,0.00019178,2]
[347346064,1735716640177,-151.0,0.00019178,2]
[347346066,1735716640186,-159.975454,0.00019178,2]
[347346068,1735716640195,-151.0,0.00019178,2]
[347346070,1735716640204,-296.52724,0.00019178,2]
[347346072,1735716640213,-745.47,0.00019178,2]
[347346074,1735716640222,-500.0,0.00019178,2]
[347346076,1735716640231,-501.034134,0.00019178,2]
[347346078,1735716640240,-500.0,0.00019178,2]
[347346080,1735716640249,-507.90671495,0.00019178,2]
[347346082,1735716640263,-500.0,0.00019178,2]
[347346084,1735716640272,-500.0,0.00019178,2]
[347346086,1735716640281,-526.61120078,0.00019178,2]
[347346088,1735716640291,-502.06250746,0.00019178,2]
[347346090,1735716640301,-153.893313,0.00019178,2]
[347346092,1735716640310,-153.893313,0.00019178,2]
[347346094,1735716640319,-153.893313,0.00019178,2]
[347346096,1735716640329,-500.0,0.00019178,2]
[347346098,1735716640338,-153.893313,0.00019178,2]
[347346100,1735716640347,-153.893313,0.00019178,2]
[347346101,1735716640356,-1584.88,0.00019178,2]
[347346102,1735716640366,-500.0,0.00019178,2]
[347346103,1735716640375,-500.0,0.00019178,2]
[347346104,1735716640384,-621.87475686,0.00019178,2]
[347346105,1735716640394,-500.0,0.00019178,2]
[347346106,1735716640403,-506.63747627,0.00019178,2]
[347346107,1735716640412,-500.0,0.00019178,2]
[347346108,1735716640422,-500.0,0.00019178,2]
[347346110,1735716640431,-338.14327349,0.00019178,2]
[347346112,1735716640440,-500.0,0.00019178,2]
[347346114,1735716640449,-629.46140735,0.00019178,2]
[347346116,1735716640458,-556.86898624,0.00019178,2]
[347346118,1735716640467,-501.53,0.00019178,2]
[347346120,1735716640476,-388.02550735,0.00019178,2]
[347346122,1735716640486,-643.75,0.00019178,2]
[347346124,1735716640495,-500.0,0.00019178,2]
[347346126,1735716640504,-500.0,0.00019178,2]
[347346128,1735716640514,-502.41305177,0.00019178,2]
[347346130,1735716640523,-500.0,0.00019178,2]
[347346132,1735716640532,-151.0,0.00019178,2]
[347346134,1735716640542,-151.0,0.00019178,2]
[347346136,1735716640552,-151.0,0.00019178,2]
[347346138,1735716640561,-151.0,0.00019178,2]
[347346140,1735716640571,-151.0,0.00019178,2]
[347346142,1735716640581,-151.0,0.00019178,2]
[347346144,1735716640590,-151.0,0.00019178,2]
[347346146,1735716640600,-151.0,0.00019178,2]
[347346148,1735716640610,-151.0,0.00019178,2]
[347346150,1735716640620,-151.0,0.00019178,2]
[347346152,1735716640630,-286.94098,0.00019178,2]
[347346154,1735716640640,-500.99369359,0.00019178,2]
[347346156,1735716640650,-151.74,0.00019178,2]
[347346158,1735716640659,-500.0,0.00019178,2]
[347346160,1735716640668,-500.0,0.00019178,2]
[347346162,1735716640677,-500.0,0.00019178,2]
[347346165,1735716640688,-152.119931,0.00019178,2]
[347346167,1735716640697,-501.36708381,0.00019178,2]
[347346169,1735716640706,-500.0,0.00019178,2]
[347346171,1735716640715,-500.0,0.00019178,2]
[347346186,1735716640843,-269.77640778,0.00019178,2]
[347346188,1735716640852,-500.0,0.00019178,2]
[347346190,1735716640861,-500.0,0.00019178,2]
[347346192,1735716640871,-500.0,0.00019178,2]
[347346194,1735716640880,-1776.7,0.00019178,2]
[347346196,1735716640889,-500.0,0.00019178,2]
[347346198,1735716640898,-500.0,0.00019178,2]
[347346200,1735716640907,-500.0,0.00019178,2]
[347346202,1735716640916,-500.0,0.00019178,2]
[347346204,1735716640926,-500.0,0.00019178,2]
[347346206,1735716640935,-505.44182264,0.00019178,2]
[347346208,1735716640945,-500.0,0.00019178,2]
[347346210,1735716640954,-905.44,0.00019178,2]
[347346212,1735716640963,-500.0,0.00019178,2]
[347346214,1735716640972,-500.0,0.00019178,2]
[347346216,1735716640981,-506.92359743,0.00019178,2]
[347346218,1735716640990,-500.0,0.00019178,2]
[347346220,1735716640999,-500.0,0.00019178,2]
[347346222,1735716641008,-151.0,0.00019178,2]
[347346224,1735716641017,-151.0,0.00019178,2]
[347346226,1735716641026,-151.0,0.00019178,2]
[347346228,1735716641035,-151.0,0.00019178,2]
[347346230,1735716641044,-151.0,0.00019178,2]
[347346232,1735716641053,-151.0,0.00019178,2]
[347346234,1735716641067,-151.0,0.00019178,2]
[347346236,1735716641076,-151.0,0.00019178,2]
[347346238,1735716641085,-500.0,0.00019178,2]
[347346240,1735716641094,-151.0,0.00019178,2]
[347346242,1735716641103,-500.0,0.00019178,2]
[347346244,1735716641112,-151.0,0.00019178,2]
[347346246,1735716641121,-253.317074,0.00019178,2]
[347346248,1735716641130,-917.46,0.00019178,2]
[347346250,1735716641139,-478.5965589,0.00019178,2]
[347346252,1735716641148,-500.0,0.00019178,2]
[347346254,1735716641158,-506.45471269,0.00019178,2]
[347346256,1735716641167,-500.0,0.00019178,2]
[347346258,1735716641176,-500.0,0.00019178,2]
[347346260,1735716641186,-538.97350948,0.00019178,2]
[347346262,1735716641195,-500.0,0.00019178,2]
[347346264,1735716641204,-500.0,0.00019178,2]
[347346266,1735716641213,-500.0,0.00019178,2]
[347346268,1735716641222,-526.0447553,0.00019178,2]
[347346270,1735716641231,-500.0,0.00019178,2]
[347346272,1735716641240,-500.0,0.00019178,2]
[347346275,1735716641250,-926.06,0.00019178,2]
[347346276,1735716641262,-500.0,0.00019178,2]
[347346278,1735716641271,-500.0,0.00019178,2]
[347346280,1735716641280,-518.5959948,0.00019178,2]
[347346282,1735716641289,-500.0,0.00019178,2]
[347346284,1735716641299,-524.96,0.00019178,2]
[347346286,1735716641308,-503.30953039,0.00019178,2]
[347346288,1735716641317,-502.53435157,0.00019178,2]
[347346290,1735716641327,-500.0,0.00019178,2]
[347346292,1735716641338,-500.0,0.00019178,2]
[347346294,1735716641347,-500.0,0.00019178,2]
[347346296,1735716641356,-1994.76,0.00019178,2]
[347346298,1735716641365,-500.0,0.00019178,2]
[347346300,1735716641374,-500.0,0.00019178,2]
[347346302,1735716641383,-501.0021488,0.00019178,2]
[347346304,1735716641392,-242.97170076,0.00019178,2]
[347346306,1735716641401,-437.10988807,0.00019178,2]
[347346308,1735716641410,-2324.0,0.00019178,2]
[347346310,1735716641419,-496.07589986,0.00019178,2]
[347346312,1735716641428,-743.53,0.00019178,2]
[347346314,1735716641438,-708.64,0.00019178,2]
[347346316,1735716641447,-500.0,0.00019178,2]
[347346317,1735716641456,-500.0,0.00019178,2]
[347346318,1735716641466,-500.0,0.00019178,2]
[347346319,1735716641475,-554.62128295,0.00019178,2]
[347346320,1735716641484,-500.0,0.00019178,2]
[347346321,1735716641493,-515.00695296,0.00019178,2]
[347346322,1735716641503,-437.51910112,0.00019178,2]
[347346323,1735716641512,-713.31,0.00019178,2]
[347346324,1735716641521,-500.0,0.00019178,2]
[347346325,1735716641530,-500.0,0.00019178,2]
[347346326,1735716641539,-470.759076,0.00019178,2]
[347346327,1735716641548,-470.759076,0.00019178,2]
[347346328,1735716641558,-470.759076,0.00019178,2]
[347346329,1735716641567,-470.759076,0.00019178,2]
[347346330,1735716641576,-470.759076,0.00019178,2]
[347346331,1735716641585,-470.759076,0.00019178,2]
[347346332,1735716641594,-500.0,0.00019178,2]
[347346333,1735716641603,-470.759076,0.00019178,2]
[347346334,1735716641612,-470.759076,0.00019178,2]
[347346335,1735716641622,-470.759076,0.00019178,2]
[347346336,1735716641631,-470.759076,0.00019178,2]
[347346337,1735716641640,-470.759076,0.00019178,2]
[347346338,1735716641650,-470.759076,0.00019178,2]
[347346339,1735716641659,-470.759076,0.00019178,2]
[347346340,1735716641671,-470.759076,0.00019178,2]
[347346341,1735716641680,-500.0,0.00019178,2]
[347346342,1735716641688,-500.0,0.00019178,2]
[347346343,1735716641697,-500.0,0.00019178,2]
[347346344,1735716641706,-503.82277232,0.00019178,2]
[347346345,1735716641716,-501.50089109,0.00019178,2]
[347346346,1735716641725,-502.49106974,0.00019178,2]
[347346347,1735716641734,-3328.19,0.00019178,2]
[347346348,1735716641743,-500.0,0.00019178,2]
[347346349,1735716641753,-500.0,0.00019178,2]
[347346350,1735716641762,-500.0,0.00019178,2]
[347346351,1735716641771,-500.0,0.00019178,2]
[347346352,1735716641780,-500.0,0.00019178,2]
[347346353,1735716641790,-500.0,0.00019178,2]
[347346354,1735716641800,-500.0,0.00019178,2]
[347346355,1735716641809,-151.0,0.00019178,2]
[347346356,1735716641819,-151.0,0.00019178,2]
[347346357,1735716641829,-500.0,0.00019178,2]
[347346358,1735716641838,-151.0,0.00019178,2]
[347346359,1735716641847,-151.0,0.00019178,2]
[347346360,1735716641856,-500.0,0.00019178,2]
[347346361,1735716641865,-151.0,0.00019178,2]
[347346362,1735716641874,-151.0,0.00019178,2]
[347346363,1735716641883,-151.0,0.00019178,2]
[347346364,1735716641893,-151.0,0.00019178,2]
[347346365,1735716641902,-151.0,0.00019178,2]
[347346366,1735716641911,-151.0,0.00019178,2]
[347346367,1735716641920,-151.0,0.00019178,2]
[347346368,1735716641929,-151.0,0.00019178,2]
[347346369,1735716641939,-151.0,0.00019178,2]
[347346370,1735716641948,-151.0,0.00019178,2]
[347346371,1735716641957,-151.0,0.00019178,2]
[347346372,1735716641966,-151.0,0.00019178,2]
[347346373,1735716641975,-198.907698,0.00019178,2]
[347346374,1735716641984,-151.0,0.00019178,2]
[347346375,1735716641993,-151.0,0.00019178,2]
[347346376,1735716642002,-151.0,0.00019178,2]
[347346377,1735716642011,-500.0,0.00019178,2]
[347346378,1735716642021,-264.492924,0.00019178,2]
[347346379,1735716642029,-770.92,0.00019178,2]
[347346380,1735716642039,-500.0,0.00019178,2]
[347346381,1735716642048,-500.0,0.00019178,2]
[347346382,1735716642057,-501.06647852,0.00019178,2]
[347346383,1735716642067,-151.0,0.00019178,2]
[347346384,1735716642078,-151.0,0.00019178,2]
[347346385,1735716642087,-151.0,0.00019178,2]
[347346386,1735716642096,-151.0,0.00019178,2]
[347346387,1735716642106,-151.0,0.00019178,2]
[347346388,1735716642115,-508.50004942,0.00019178,2]
[347346389,1735716642124,-151.0,0.00019178,2]
[347346390,1735716642133,-151.0,0.00019178,2]
[347346391,1735716642142,-151.0,0.00019178,2]
[347346392,1735716642151,-234.660956,0.00019178,2]
[347346393,1735716642160,-500.0,0.00019178,2]
[347346394,1735716642170,-500.0,0.00019178,2]
[347346395,1735716642179,-500.0,0.00019178,2]
[347346396,1735716642189,-500.0,0.00019178,2]
[347346397,1735716642199,-500.0,0.00019178,2]
[347346398,1735716642209,-764.85,0.00019178,2]
[347346399,1735716642220,-500.0,0.00019178,2]
[347346400,1735716642228,-500.0,0.00019178,2]
[347346401,1735716642238,-151.0,0.00019178,2]
[347346402,1735716642248,-178.70131,0.00019178,2]
[347346403,1735716642262,-178.70131,0.00019178,2]
[347346404,1735716642274,-500.77699858,0.00019178,2]
[347346405,1735716642284,-178.70131,0.00019178,2]
[347346406,1735716642293,-178.70131,0.00019178,2]
[347346407,1735716642303,-178.70131,0.00019178,2]
[347346408,1735716642313,-500.0,0.00019178,2]
[347346409,1735716642323,-178.70131,0.00019178,2]
[347346410,1735716642333,-178.70131,0.00019178,2]
[347346411,1735716642342,-178.70131,0.00019178,2]
[347346412,1735716642351,-178.70131,0.00019178,2]
[347346413,1735716642360,-178.70131,0.00019178,2]
[347346414,1735716642369,-178.70131,0.00019178,2]
[347346415,1735716642379,-178.70131,0.00019178,2]
[347346416,1735716642388,-178.70131,0.00019178,2]
[347346417,1735716642397,-178.70131,0.00019178,2]
[347346418,1735716642407,-178.70131,0.00019178,2]
[347346419,1735716642416,-178.70131,0.00019178,2]
[347346420,1735716642425,-178.70131,0.00019178,2]
[347346421,1735716642434,-178.70131,0.00019178,2]
[347346422,1735716642443,-500.0,0.00019178,2]
[347346423,1735716642452,-500.0,0.00019178,2]
[347346424,1735716642461,-500.0,0.00019178,2]
[347346425,1735716642470,-500.0,0.00019178,2]
[347346426,1735716642479,-500.0,0.00019178,2]
[347346427,1735716642488,-500.0,0.00019178,2]
[347346428,1735716642497,-500.0,0.00019178,2]
[347346429,1735716642506,-1076.63,0.00019178,2]
[347346430,1735716642516,-515.3931518,0.00019178,2]
[347346431,1735716642525,-7210.74,0.00019178,2]
[347346432,1735716642534,-410.18443262,0.00019178,2]
[347346433,1735716642543,-500.59485911,0.00019178,2]
[347346434,1735716642552,-508.92375146,0.00019178,2]
[347346435,1735716642562,-500.0,0.00019178,2]
[347346436,1735716642571,-516.87839201,0.00019178,2]
[347346437,1735716642581,-151.0,0.00019178,2]
[347346438,1735716642590,-151.0,0.00019178,2]
[347346439,1735716642599,-151.0,0.00019178,2]
[347346440,1735716642608,-540.98910105,0.00019178,2]
[347346441,1735716642618,-500.0,0.00019178,2]
[347346442,1735716642628,-500.0,0.00019178,2]
[347346444,1735716642637,-1819.76,0.00019178,2]
[347346445,1735716642647,-536.26511803,0.00019178,2]
[347346447,1735716642656,-569.3,0.00019178,2]
[347346449,1735716642666,-500.0,0.00019178,2]
[347346451,1735716642675,-505.23924103,0.00019178,2]
[347346453,1735716642685,-335.890194,0.00019178,2]
[347346455,1735716642694,-335.890194,0.00019178,2]
[347346457,1735716642704,-335.890194,0.00019178,2]
[347346459,1735716642713,-335.890194,0.00019178,2]
[347346462,1735716642722,-335.890194,0.00019178,2]
[347346464,1735716642732,-335.890194,0.00019178,2]
[347346466,1735716642741,-335.890194,0.00019178,2]
[347346468,1735716642750,-335.890194,0.00019178,2]
[347346470,1735716642760,-335.890194,0.00019178,2]
[347346471,1735716642769,-335.890194,0.00019178,2]
[347346472,1735716642779,-335.890194,0.00019178,2]
[347346473,1735716642788,-335.890194,0.00019178,2]
[347346474,1735716642798,-335.890194,0.00019178,2]
[347346475,1735716642807,-335.890194,0.00019178,2]
[347346476,1735716642816,-335.890194,0.00019178,2]
[347346477,1735716642826,-335.890194,0.00019178,2]
[347346478,1735716642835,-780.93,0.00019178,2]
[347346479,1735716642844,-335.890194,0.00019178,2]
[347346480,1735716642854,-335.890194,0.00019178,2]
[347346481,1735716642863,-335.890194,0.00019178,2]
[347346482,1735716642872,-335.890188,0.00019178,2]
[347346483,1735716642882,-500.0,0.00019178,2]
[347346484,1735716642891,-500.0,0.00019178,2]
[347346485,1735716642900,-500.0,0.00019178,2]
[347346486,1735716642909,-500.0,0.00019178,2]
[347346487,1735716642918,-877.22,0.00019178,2]
[347346488,1735716642927,-410.42914935,0.00019178,2]
[347346490,1735716642936,-500.0,0.00019178,2]
[347346492,1735716642946,-513.95675837,0.00019178,2]
[347346493,1735716642955,-1503.12,0.00019178,2]
[347346494,1735716642965,-521.48,0.00019178,2]
[347346495,1735716642974,-198.41498124,0.00019178,2]
[347346496,1735716642983,-500.0,0.00019178,2]
[347346497,1735716642992,-878.68,0.00019178,2]
[347346498,1735716643001,-500.0,0.00019178,2]
[347346499,1735716643011,-500.0,0.00019178,2]
[347346500,1735716643021,-500.0,0.00019178,2]
[347346501,1735716643031,-500.0,0.00019178,2]
[347346502,1735716643041,-500.0,0.00019178,2]
[347346503,1735716643050,-508.55669606,0.00019178,2]
[347346504,1735716643059,-561.65,0.00019178,2]
[347346505,1735716643068,-406.31404546,0.00019178,2]
[347346506,1735716643078,-3004.32,0.00019178,2]
[347346507,1735716643088,-500.0,0.00019178,2]
[347346508,1735716643098,-500.0,0.00019178,2]
[347346509,1735716643108,-514.77,0.00019178,2]
[347346510,1735716643119,-500.0,0.00019178,2]
[347346511,1735716643129,-502.05147233,0.00019178,2]
[347346512,1735716643139,-509.00885708,0.00019178,2]
[347346513,1735716643148,-151.0,0.00019178,2]
[347346514,1735716643157,-151.0,0.00019178,2]
[347346515,1735716643168,-501.20313811,0.00019178,2]
[347346516,1735716643179,-500.0,0.00019178,2]
[347346517,1735716643188,-151.0,0.00019178,2]
[347346518,1735716643197,-151.0,0.00019178,2]
[347346519,1735716643207,-151.0,0.00019178,2]
[347346520,1735716643216,-501.10054016,0.00019178,2]
[347346521,1735716643309,-439.63696077,0.00019178,2]
[347346529,1735716646166,-192.961538,0.00018104,2]
[347346530,1735716646176,-60.36303923,0.00019178,2]
[347346531,1735716646186,-455.79020431,0.00019178,2]
[347346902,1735717079704,253.419871,0.00013973,2]
[347347084,1735717832475,-779.77518334,0.00017858,2]
[347347086,1735717832495,-512.781,0.0001822,2]
[347347088,1735717832504,-201.4,0.00019031,4]
[347347092,1735717832513,-510.65022653,0.00019078,2]
[347347095,1735717832522,-263.07239366,0.000191,2]
[347347099,1735717832534,-1779.18368024,0.000191,2]
[347347102,1735717832543,-300.0,0.00019134,2]
[347347104,1735717832553,-153.0,0.00019135,2]
[347347107,1735717832562,-153.0,0.00019135,2]
[347347110,1735717832571,-153.0,0.00019135,2]
[347347112,1735717832580,-153.0,0.00019135,2]
[347347114,1735717832589,-153.0,0.00019135,2]
[347347117,1735717832599,-153.0,0.00019135,2]
[347347120,1735717832609,-153.0,0.00019135,2]
[347347123,1735717832619,-178.16651705,0.00019177,2]
[347347126,1735717832628,-500.0,0.00019177,2]
[347347129,1735717832637,-152.59357196,0.00019177,2]
[347347132,1735717832646,-500.0,0.00019177,2]
[347347135,1735717832656,-500.0,0.00019177,2]
[347347138,1735717832668,-500.0,0.00019177,2]
[347347141,1735717832677,-500.0,0.00019177,2]
[347347144,1735717832686,-500.0,0.00019177,2]
[347347147,1735717832695,-500.0,0.00019177,2]
[347347150,1735717832706,-500.0,0.00019177,2]
[347347153,1735717832715,-500.0,0.00019177,2]
[347347156,1735717832724,-500.0,0.00019177,2]
[347347159,1735717832735,-328.73735859,0.00019177,2]